fUST/lending_fUST_20240218
["ID","MTS","AMOUNT","RATE_DAILY","PERIOD"]
[314358066,1708227041513,-500.0,0.00029041,2]
[314358067,1708227041523,-500.0,0.00029041,2]
[314358068,1708227041532,-581.53,0.00029041,2]
[314358069,1708227041541,-500.0,0.00029041,2]
[314358070,1708227041550,-500.0,0.00029041,2]
[314358071,1708227041559,-500.0,0.00029041,2]
[314358072,1708227041568,-920.36,0.00029041,2]
[314358073,1708227041577,-5450.29,0.00029041,2]
[314358074,1708227041587,-3012.17,0.00029041,2]
[314358075,1708227041599,-3376.31,0.00029041,2]
[314358076,1708227041608,-989.02,0.00029041,2]
[314358077,1708227041617,-1059.99,0.00029041,2]
[314358078,1708227041627,-645.54,0.00029041,2]
[314358079,1708227041637,-500.0,0.00029041,2]
[314358080,1708227041646,-545.08,0.00029041,2]
[314358081,1708227041655,-500.0,0.00029041,2]
[314358082,1708227041665,-599.47,0.00029041,2]
[314358083,1708227041675,-513.33,0.00029041,2]
[314358084,1708227041686,-1810.15,0.00029041,2]
[314358085,1708227041694,-500.0,0.00029041,2]
[314358086,1708227041704,-560.92,0.00029041,2]
[314358087,1708227041713,-691.49,0.00029041,2]
[314358088,1708227041723,-351.034866,0.00029076,2]
[314358089,1708227041734,-266.111855,0.00029076,2]
[314358090,1708227041743,-175.517433,0.00029076,2]
[314358091,1708227041752,-192.253272,0.00029076,2]
[314358092,1708227041763,-175.517433,0.00029076,2]
[314358093,1708227041772,-192.25327,0.00029076,2]
[314358094,1708227041781,-165.026987,0.00029076,2]
[314358095,1708227041790,-150.759893,0.00029076,2]
[314358096,1708227041799,-237.186072,0.00029076,2]
[314358097,1708227041808,-368.99873029,0.00029215,2]
[314358098,1708227041817,-500.0,0.00029315,2]
[314358099,1708227041828,-500.0,0.00029315,2]
[314358100,1708227041837,-866.45,0.00029315,2]
[314358101,1708227041846,-714.02,0.00029315,2]
[314358102,1708227041855,-745.09,0.00029315,2]
[314358103,1708227041865,-883.67,0.00029315,2]
[314358104,1708227041874,-506.44,0.00029315,2]
[314358105,1708227041882,-1945.0,0.00029315,2]
[314358106,1708227041892,-847.68,0.00029315,2]
[314358107,1708227041901,-5486.52,0.00029315,2]
[314358108,1708227041910,-4716.11,0.00029315,2]
[314358109,1708227041919,-3200.39,0.00029315,2]
[314358110,1708227041928,-500.0,0.00029315,2]
[314358111,1708227041938,-257.25896583,0.00029315,2]
[314358112,1708227041947,-581.53,0.00029315,2]
[314358113,1708227041957,-500.0,0.00029315,2]
[314358114,1708227041967,-500.0,0.00029315,2]
[314358115,1708227041978,-500.0,0.00029315,2]
[314358116,1708227041988,-920.36,0.00029315,2]
[314358117,1708227041997,-5450.29,0.00029315,2]
[314358118,1708227042007,-3012.17,0.00029315,2]
[314358119,1708227042016,-3376.31,0.00029315,2]
[314358120,1708227042025,-989.02,0.00029315,2]
[314358121,1708227042034,-1059.99,0.00029315,2]
[314358122,1708227042043,-645.54,0.00029315,2]
[314358123,1708227042053,-500.0,0.00029315,2]
[314358124,1708227042062,-545.08,0.00029315,2]
[314358125,1708227042072,-500.0,0.00029315,2]
[314358126,1708227042081,-599.47,0.00029315,2]
[314358127,1708227042090,-513.33,0.00029315,2]
[314358128,1708227042099,-1810.15,0.00029315,2]
[314358129,1708227042108,-500.0,0.00029315,2]
[314358130,1708227042118,-560.92,0.00029315,2]
[314358131,1708227042127,-691.49,0.00029315,2]
[314358132,1708227042137,-351.034866,0.00029439,2]
[314358133,1708227042147,-266.111855,0.00029439,2]
[314358134,1708227042157,-175.517433,0.00029439,2]
[314358135,1708227042166,-175.517433,0.00029439,2]
[314358136,1708227042176,-150.759893,0.00029439,2]
[314358137,1708227042185,-237.186072,0.00029439,2]
[314358138,1708227042195,-17729.2897667,0.00029489,2]
[314358139,1708227042204,-368.99873027,0.00029494,2]
[314358140,1708227042214,-500.0,0.00029589,2]
[314358141,1708227042223,-500.0,0.00029589,2]
[314358142,1708227042234,-866.45,0.00029589,2]
[314358143,1708227042244,-714.02,0.00029589,2]
[314358144,1708227042253,-745.09,0.00029589,2]
[314358145,1708227042263,-883.67,0.00029589,2]
[314358146,1708227042272,-506.44,0.00029589,2]
[314358147,1708227042282,-1945.0,0.00029589,2]
[314358148,1708227042292,-847.68,0.00029589,2]
[314358149,1708227042301,-5486.52,0.00029589,2]
[314358150,1708227042311,-4716.11,0.00029589,2]
[314358151,1708227042320,-3200.39,0.00029589,2]
[314358152,1708227042329,-500.0,0.00029589,2]
[314358153,1708227042338,-581.53,0.00029589,2]
[314358154,1708227042348,-500.0,0.00029589,2]
[314358155,1708227042358,-500.0,0.00029589,2]
[314358156,1708227042367,-604.72770073,0.00029589,2]
[314358157,1708227042377,-920.36,0.00029589,2]
[314358158,1708227042387,-5450.29,0.00029589,2]
[314358159,1708227042397,-3012.17,0.00029589,2]
[314358160,1708227042406,-3376.31,0.00029589,2]
[314358161,1708227042416,-989.02,0.00029589,2]
[314358162,1708227042425,-1059.99,0.00029589,2]
[314358163,1708227042435,-645.54,0.00029589,2]
[314358165,1708227042445,-500.0,0.00029589,2]
[314358166,1708227042454,-545.08,0.00029589,2]
[314358167,1708227042464,-500.0,0.00029589,2]
[314358168,1708227042474,-599.47,0.00029589,2]
[314358169,1708227042484,-513.33,0.00029589,2]
[314358170,1708227042493,-1810.15,0.00029589,2]
[314358173,1708227042502,-500.0,0.00029589,2]
[314358174,1708227042512,-560.92,0.00029589,2]
[314358175,1708227042594,-691.49,0.00029589,2]
[314358176,1708227042604,-300.0,0.00029675,2]
[314358178,1708227042614,-5000.0,0.00029751,5]
[314358179,1708227042623,-5000.0,0.00029751,5]
[314358180,1708227042632,-368.99873027,0.00029773,2]
[314358181,1708227042642,-192.253272,0.00029802,2]
[314358182,1708227042652,-192.25327,0.00029802,2]
[314358183,1708227042662,-351.034866,0.00029803,2]
[314358184,1708227042672,-266.111855,0.00029803,2]
[314358185,1708227042682,-175.517433,0.00029803,2]
[314358186,1708227042692,-175.517433,0.00029803,2]
[314358187,1708227042701,-150.759893,0.00029803,2]
[314358188,1708227042711,-237.186072,0.00029803,2]
[314358189,1708227042720,-211.05170678,0.00029862,2]
[314358190,1708227042730,-500.0,0.00029863,2]
[314358191,1708227042739,-500.0,0.00029863,2]
[314358192,1708227042749,-866.45,0.00029863,2]
[314358193,1708227042759,-714.02,0.00029863,2]
[314358194,1708227042768,-745.09,0.00029863,2]
[314358195,1708227042777,-883.67,0.00029863,2]
[314358196,1708227042787,-506.44,0.00029863,2]
[314358197,1708227042796,-1945.0,0.00029863,2]
[314358198,1708227042806,-847.68,0.00029863,2]
[314358199,1708227042815,-5486.52,0.00029863,2]
[314358200,1708227042825,-4716.11,0.00029863,2]
[314358201,1708227042834,-3200.39,0.00029863,2]
[314358202,1708227042843,-500.0,0.00029863,2]
[314358203,1708227042853,-581.53,0.00029863,2]
[314358204,1708227042862,-500.0,0.00029863,2]
[314358205,1708227042871,-500.0,0.00029863,2]
[314358206,1708227042881,-920.36,0.00029863,2]
[314358207,1708227042890,-5450.29,0.00029863,2]
[314358208,1708227042899,-3012.17,0.00029863,2]
[314358209,1708227042908,-3376.31,0.00029863,2]
[314358210,1708227042918,-989.02,0.00029863,2]
[314358211,1708227042927,-1059.99,0.00029863,2]
[314358212,1708227042937,-645.54,0.00029863,2]
[314358213,1708227042946,-500.0,0.00029863,2]
[314358214,1708227042955,-545.08,0.00029863,2]
[314358215,1708227042965,-500.0,0.00029863,2]
[314358216,1708227042974,-599.47,0.00029863,2]
[314358217,1708227042985,-513.33,0.00029863,2]
[314358218,1708227042994,-1810.15,0.00029863,2]
[314358219,1708227043004,-500.0,0.00029863,2]
[314358220,1708227043013,-560.92,0.00029863,2]
[314358222,1708227043022,-691.49,0.00029863,2]
[314358224,1708227043031,-155.24189363,0.00029898,60]
[314358226,1708227043041,-152.61832865,0.000299,2]
[314358227,1708227043050,-21856.77737097,0.000299,2]
[314358228,1708227043060,-554.63617824,0.0003,2]
[314358229,1708227043069,-333.97599319,0.0003,10]
[314358230,1708227043078,-1646.04607026,0.0003,2]
[314358231,1708227043096,-533.99952897,0.0003,2]
[314358232,1708227043193,-344.77284484,0.0003,2]
[314358233,1708227043244,-0.00146771,0.0003,2]
[314358234,1708227043255,-584.48972445,0.0003,2]
[314358244,1708227046162,-772.44132988,0.0003,2]
[314358245,1708227046172,-363.517738,0.0003,14]
[314358246,1708227046182,-2000.0,0.0003,2]
[314358247,1708227046190,-324.89228745,0.0003001,2]
[314358248,1708228173090,-273.55227487,0.00024655,2]
[314358249,1708228173110,-166.6666668,0.00024658,2]
[314358250,1708228173131,-75.56303151,0.00025246,2]
[314358279,1708228232276,-155.0294556,0.00024654,2]
[314358290,1708228232286,-190.23395634,0.00024944,2]
[314358292,1708228232380,-363.89236228,0.00025246,2]
[314358343,1708228238306,-1147.33248501,0.00025246,2]
[314358344,1708228238316,-380.0,0.00025376,2]
[314358345,1708228238326,-620.54664365,0.00025514,2]
[314358346,1708228238335,-291.018738,0.00025708,2]
[314358347,1708228238344,-151.38896908,0.00025822,2]
[314358348,1708228238353,-58687.03973929,0.00025922,2]
[314358349,1708228238362,-7985.41657641,0.00025922,2]
[314358350,1708228238371,-19378.9986054,0.00025922,2]
[314358351,1708228238380,-151.38896906,0.0002671,3]
[314358352,1708228238402,-620.02733218,0.0002679,2]
[314358353,1708228238412,-1076.59,0.00027387,3]
[314358354,1708228238422,-538.3,0.00027387,3]
[314358355,1708228238432,-269.15,0.00027387,3]
[314358356,1708228238442,-807.46,0.00027387,3]
[314358357,1708228238452,-273.55227487,0.00027395,2]
[314358358,1708228238462,-500.0,0.00027396,2]
[314358359,1708228238471,-441.08884816,0.00027396,2]
[314358360,1708228238481,-238.42482762,0.00027396,2]
[314358361,1708228238491,-500.0,0.00027396,2]
[314358362,1708228238500,-619.10977724,0.00027396,2]
[314358363,1708228238510,-500.0,0.00027396,2]
[314358364,1708228238520,-500.0,0.00027396,2]
[314358365,1708228238529,-500.0,0.00027396,2]
[314358366,1708228238540,-418.12115423,0.00027396,2]
[314358367,1708228238550,-500.0,0.00027396,2]
[314358368,1708228238560,-180.41614724,0.00027396,2]
[314358369,1708228238570,-500.0,0.00027396,2]
[314358370,1708228238580,-500.0,0.00027396,2]
[314358371,1708228238589,-500.0,0.00027396,2]
[314358372,1708228238599,-500.0,0.00027397,2]
[314358373,1708228238610,-500.0,0.00027397,2]
[314358374,1708228238619,-500.0,0.00027397,2]
[314358375,1708228238629,-500.0,0.00027397,2]
[314358376,1708228238639,-500.0,0.00027397,2]
[314358377,1708228238648,-500.0,0.00027397,2]
[314358378,1708228238658,-400.09471443,0.00027397,2]
[314358379,1708228238667,-500.0,0.00027397,2]
[314358380,1708228238677,-367.17290942,0.00027397,2]
[314358381,1708228238686,-500.0,0.00027397,2]
[314358382,1708228238696,-516.86774964,0.00027397,2]
[314358383,1708228238706,-500.0,0.00027397,2]
[314358384,1708228238715,-866.45,0.00027397,2]
[314358385,1708228238725,-500.0,0.00027397,2]
[314358386,1708228238735,-189.09372284,0.00027397,2]
[314358387,1708228238744,-500.0,0.00027397,2]
[314358388,1708228238754,-500.0,0.00027397,2]
[314358389,1708228238764,-500.0,0.00027397,2]
[314358390,1708228238774,-505.05894013,0.00027397,2]
[314358391,1708228238784,-591.56,0.00027397,2]
[314358392,1708228238794,-504.42826121,0.00027397,2]
[314358393,1708228238807,-500.0,0.00027397,2]
[314358394,1708228238815,-500.0,0.00027397,2]
[314358395,1708228238828,-500.0,0.00027397,2]
[314358396,1708228238838,-500.0,0.00027397,2]
[314358397,1708228238849,-500.0,0.00027397,2]
[314358398,1708228238858,-506.3910168,0.00027397,2]
[314358399,1708228238871,-500.0,0.00027397,2]
[314358400,1708228238882,-500.0,0.00027397,2]
[314358401,1708228238892,-1000.0,0.00027397,2]
[314358402,1708228238902,-500.0,0.00027397,2]
[314358403,1708228238912,-648.0,0.00027397,2]
[314358404,1708228238921,-500.0,0.00027397,2]
[314358405,1708228238931,-557.30126923,0.00027397,2]
[314358406,1708228238941,-500.0,0.00027397,2]
[314358407,1708228238957,-500.0,0.00027397,2]
[314358408,1708228238967,-500.0,0.00027397,2]
[314358409,1708228238978,-500.0,0.00027397,2]
[314358410,1708228238989,-551.95411662,0.00027397,2]
[314358411,1708228239001,-500.0,0.00027397,2]
[314358412,1708228239012,-500.0,0.00027397,2]
[314358413,1708228239023,-544.61075408,0.00027397,2]
[314358414,1708228239034,-500.0,0.00027397,2]
[314358415,1708228239045,-500.0,0.00027397,2]
[314358416,1708228239063,-500.0,0.00027397,2]
[314358417,1708228239076,-500.0,0.00027397,2]
[314358418,1708228239086,-500.0,0.00027397,2]
[314358419,1708228239097,-500.0,0.00027397,2]
[314358420,1708228239106,-507.1060699,0.00027397,2]
[314358421,1708228239116,-500.0,0.00027397,2]
[314358422,1708228239126,-500.0,0.00027397,2]
[314358423,1708228239136,-500.0,0.00027397,2]
[314358424,1708228239146,-511.59386089,0.00027397,2]
[314358425,1708228239157,-500.0,0.00027397,2]
[314358426,1708228239168,-500.0,0.00027397,2]
[314358427,1708228239179,-500.0,0.00027397,2]
[314358428,1708228239190,-500.0,0.00027397,2]
[314358429,1708228239201,-500.0,0.00027397,2]
[314358430,1708228239210,-500.0,0.00027397,2]
[314358431,1708228239220,-500.0,0.00027397,2]
[314358432,1708228239230,-500.0,0.00027397,2]
[314358433,1708228239241,-500.0,0.00027397,2]
[314358434,1708228239251,-500.0,0.00027397,2]
[314358435,1708228239261,-500.0,0.00027397,2]
[314358436,1708228239271,-501.46624932,0.00027397,2]
[314358437,1708228239281,-500.0,0.00027397,2]
[314358438,1708228239291,-500.0,0.00027397,2]
[314358439,1708228239307,-500.0,0.00027397,2]
[314358440,1708228239317,-500.0,0.00027397,2]
[314358441,1708228239327,-500.0,0.00027397,2]
[314358442,1708228239336,-500.0,0.00027397,2]
[314358443,1708228239346,-521.37862085,0.00027397,2]
[314358444,1708228239356,-500.0,0.00027397,2]
[314358445,1708228239366,-500.0,0.00027397,2]
[314358446,1708228239376,-500.0,0.00027397,2]
[314358447,1708228239385,-500.0,0.00027397,2]
[314358448,1708228239394,-518.18776001,0.00027397,2]
[314358449,1708228239404,-172.36693185,0.00027397,2]
[314358450,1708228239414,-155.0,0.00027397,2]
[314358451,1708228239423,-500.0,0.00027397,2]
[314358452,1708228239433,-500.0,0.00027397,2]
[314358453,1708228239442,-500.0,0.00027397,2]
[314358454,1708228239452,-500.0,0.00027397,2]
[314358455,1708228239461,-314.19315337,0.00027397,2]
[314358456,1708228239470,-500.0,0.00027397,2]
[314358457,1708228239480,-2429.86,0.00027397,2]
[314358458,1708228239489,-500.0,0.00027397,2]
[314358459,1708228239499,-500.0,0.00027397,2]
[314358460,1708228239508,-500.0,0.00027397,2]
[314358461,1708228239518,-500.0,0.00027397,2]
[314358462,1708228239527,-500.0,0.00027397,2]
[314358463,1708228239537,-500.0,0.00027397,2]
[314358464,1708228239638,-2249.1,0.00027397,2]
[314358465,1708228239647,-500.0,0.00027397,2]
[314358466,1708228239657,-500.0,0.00027397,2]
[314358467,1708228239667,-534.01,0.00027397,2]
[314358468,1708228239677,-500.0,0.00027397,2]
[314358469,1708228239687,-500.0,0.00027397,2]
[314358470,1708228239696,-633.87849119,0.00027397,2]
[314358471,1708228239706,-500.0,0.00027397,2]
[314358473,1708228239715,-876.6,0.00027397,2]
[314358475,1708228239725,-500.0,0.00027397,2]
[314358476,1708228239734,-550.50511906,0.00027397,2]
[314358478,1708228239743,-500.0,0.00027397,2]
[314358480,1708228239752,-500.0,0.00027397,2]
[314358482,1708228239762,-500.0,0.00027397,2]
[314358484,1708228239772,-906.16,0.00027397,2]
[314358485,1708228239782,-500.0,0.00027397,2]
[314358486,1708228239793,-756.68,0.00027397,2]
[314358487,1708228239806,-500.0,0.00027397,2]
[314358488,1708228239815,-500.0,0.00027397,2]
[314358489,1708228239825,-500.0,0.00027397,2]
[314358490,1708228239835,-500.0,0.00027397,2]
[314358491,1708228239845,-1444.83,0.00027397,2]
[314358492,1708228239854,-506.30355559,0.00027397,2]
[314358493,1708228239864,-544.02446171,0.00027397,2]
[314358494,1708228239874,-1176.78,0.00027397,2]
[314358495,1708228239885,-500.0,0.00027397,2]
[314358496,1708228239895,-232.56756896,0.00027397,2]
[314358497,1708228239905,-500.0,0.00027397,2]
[314358498,1708228239915,-500.0,0.00027397,2]
[314358499,1708228239925,-500.0,0.00027397,2]
[314358500,1708228239935,-502.27713217,0.00027397,2]
[314358501,1708228239949,-500.0,0.00027397,2]
[314358502,1708228239959,-2217.57,0.00027397,2]
[314358503,1708228239968,-597.86061115,0.00027397,2]
[314358504,1708228239977,-500.0,0.00027397,2]
[314358505,1708228239987,-500.0,0.00027397,2]
[314358506,1708228239996,-390.0,0.00027397,2]
[314358507,1708228240006,-500.0,0.00027397,2]
[314358508,1708228240015,-500.0,0.00027397,2]
[314358509,1708228240024,-1849.74,0.00027397,2]
[314358510,1708228240034,-500.0,0.00027397,2]
[314358511,1708228240044,-500.0,0.00027397,2]
[314358512,1708228240059,-500.0,0.00027397,2]
[314358513,1708228240069,-500.0,0.00027397,2]
[314358514,1708228240078,-500.0,0.00027397,2]
[314358515,1708228240088,-500.0,0.00027397,2]
[314358516,1708228240097,-500.0,0.00027397,2]
[314358517,1708228240107,-9008.95,0.00027397,2]
[314358518,1708228240116,-500.0,0.00027397,2]
[314358519,1708228240125,-600.01697442,0.00027397,2]
[314358520,1708228240136,-378.5359668,0.00027397,2]
[314358521,1708228240146,-16040.37,0.00027397,2]
[314358522,1708228240156,-500.0,0.00027397,2]
[314358523,1708228240165,-500.0,0.00027397,2]
[314358524,1708228240175,-500.0,0.00027397,2]
[314358525,1708228240184,-500.0,0.00027397,2]
[314358526,1708228240194,-500.0,0.00027397,2]
[314358527,1708228240203,-500.0,0.00027397,2]
[314358528,1708228240212,-500.0,0.00027397,2]
[314358529,1708228240221,-500.0,0.00027397,2]
[314358530,1708228240231,-500.0,0.00027397,2]
[314358531,1708228240240,-500.0,0.00027397,2]
[314358532,1708228240250,-500.0,0.00027397,2]
[314358533,1708228240259,-500.0,0.00027397,2]
[314358534,1708228240269,-500.0,0.00027397,2]
[314358535,1708228240278,-500.0,0.00027397,2]
[314358536,1708228240288,-486.24233895,0.00027397,2]
[314358537,1708228240302,-13432.66,0.00027397,2]
[314358538,1708228240312,-2041.17,0.00027397,2]
[314358539,1708228240321,-753.99,0.00027397,2]
[314358540,1708228240330,-500.0,0.00027397,2]
[314358541,1708228240339,-500.0,0.00027397,2]
[314358542,1708228240350,-500.0,0.00027397,2]
[314358543,1708228240360,-500.0,0.00027397,2]
[314358544,1708228240369,-506.80406058,0.00027397,2]
[314358545,1708228240378,-511.29,0.00027397,2]
[314358546,1708228240389,-556.68,0.00027397,2]
[314358547,1708228240398,-501.95411402,0.00027397,2]
[314358548,1708228240407,-500.0,0.00027397,2]
[314358549,1708228240417,-500.0,0.00027397,2]
[314358550,1708228240427,-500.0,0.00027397,2]
[314358552,1708228240437,-500.0,0.00027397,2]
[314358554,1708228240447,-500.0,0.00027397,2]
[314358555,1708228240456,-500.0,0.00027397,2]
[314358556,1708228240466,-500.0,0.00027397,2]
[314358557,1708228240475,-500.0,0.00027397,2]
[314358558,1708228240485,-500.0,0.00027397,2]
[314358559,1708228240495,-500.0,0.00027397,2]
[314358560,1708228240505,-500.0,0.00027397,2]
[314358561,1708228240514,-10106.15,0.00027397,2]
[314358562,1708228240524,-500.0,0.00027397,2]
[314358563,1708228240534,-500.0,0.00027397,2]
[314358564,1708228240543,-776.44,0.00027397,2]
[314358565,1708228240559,-500.0,0.00027397,2]
[314358566,1708228240569,-500.0,0.00027397,2]
[314358567,1708228240579,-500.0,0.00027397,2]
[314358568,1708228240588,-500.0,0.00027397,2]
[314358569,1708228240598,-12897.71,0.00027397,2]
[314358570,1708228240607,-201.23905066,0.00027397,2]
[314358571,1708228240618,-1271.42,0.00027397,2]
[314358572,1708228240627,-500.0,0.00027397,2]
[314358573,1708228240638,-506.36604437,0.00027397,2]
[314358574,1708228240647,-500.0,0.00027397,2]
[314358575,1708228240657,-500.0,0.00027397,2]
[314358576,1708228240667,-500.0,0.00027397,2]
[314358577,1708228240677,-2629.04,0.00027397,2]
[314358578,1708228240686,-1628.1,0.00027397,2]
[314358579,1708228240695,-370.98777162,0.00027397,2]
[314358580,1708228240705,-500.0,0.00027397,2]
[314358581,1708228240714,-500.0,0.00027397,2]
[314358582,1708228240723,-500.0,0.00027397,2]
[314358583,1708228240732,-500.0,0.00027397,2]
[314358584,1708228240742,-500.0,0.00027397,2]
[314358585,1708228240751,-1313.58,0.00027397,2]
[314358586,1708228240760,-1151.93,0.00027397,2]
[314358587,1708228240770,-1316.09,0.00027397,2]
[314358588,1708228240779,-500.0,0.00027397,2]
[314358589,1708228240788,-500.0,0.00027397,2]
[314358590,1708228240801,-500.0,0.00027397,2]
[314358591,1708228240811,-500.0,0.00027397,2]
[314358592,1708228240820,-500.0,0.00027397,2]
[314358593,1708228240830,-500.0,0.00027397,2]
[314358594,1708228240839,-500.0,0.00027397,2]
[314358595,1708228240847,-500.0,0.00027397,2]
[314358596,1708228240857,-5079.52,0.00027397,2]
[314358597,1708228240866,-8344.88,0.00027397,2]
[314358598,1708228240875,-506.08199157,0.00027397,2]
[314358599,1708228240885,-2386.1,0.00027397,2]
[314358600,1708228240895,-1290.23,0.00027397,2]
[314358601,1708228240904,-500.0,0.00027397,2]
[314358602,1708228240913,-455.52626437,0.00027397,2]
[314358603,1708228240922,-500.0,0.00027397,2]
[314358604,1708228240931,-500.0,0.00027397,2]
[314358605,1708228240941,-2802.16,0.00027397,2]
[314358606,1708228240949,-1810.15,0.00027397,2]
[314358607,1708228240959,-500.0,0.00027397,2]
[314358608,1708228240970,-500.0,0.00027397,2]
[314358609,1708228240980,-500.0,0.00027397,2]
[314358610,1708228240989,-2033.54,0.00027397,2]
[314358611,1708228240999,-1503.58,0.00027397,2]
[314358612,1708228241009,-1000.0,0.00027397,2]
[314358613,1708228241018,-500.0,0.00027397,2]
[314358614,1708228241028,-1406.48,0.00027397,2]
[314358615,1708228241038,-950.67,0.00027397,2]
[314358616,1708228241049,-500.0,0.00027397,2]
[314358617,1708228241058,-525.1072069,0.00027435,2]
[314358618,1708228241067,-209.44880931,0.00027435,2]
[314358619,1708228241077,-465.01399377,0.0002757,2]
[314358620,1708228241086,-49468.03973283,0.00027571,2]
[314358621,1708228241095,-151.38896906,0.00027598,3]
[314358622,1708228241104,-160.65196591,0.00027671,3]
[314358623,1708228241114,-500.0,0.00027671,2]
[314358624,1708228241123,-500.0,0.00027671,2]
[314358625,1708228241132,-500.0,0.00027671,2]
[314358626,1708228241141,-500.0,0.00027671,2]
[314358627,1708228241150,-500.0,0.00027671,2]
[314358628,1708228241223,-500.0,0.00027671,2]
[314358629,1708228241233,-526.51649215,0.00027671,2]
[314358630,1708228241242,-500.0,0.00027671,2]
[314358631,1708228241251,-866.45,0.00027671,2]
[314358632,1708228241260,-373.61471554,0.00027671,2]
[314358633,1708228241269,-500.0,0.00027671,2]
[314358634,1708228241278,-500.0,0.00027671,2]
[314358635,1708228241288,-500.0,0.00027671,2]
[314358636,1708228241299,-591.56,0.00027671,2]
[314358637,1708228241308,-500.0,0.00027671,2]
[314358638,1708228241317,-500.0,0.00027671,2]
[314358639,1708228241326,-500.0,0.00027671,2]
[314358640,1708228241336,-500.0,0.00027671,2]
[314358641,1708228241345,-500.0,0.00027671,2]
[314358642,1708228241355,-500.0,0.00027671,2]
[314358643,1708228241365,-500.0,0.00027671,2]
[314358644,1708228241374,-1000.0,0.00027671,2]
[314358645,1708228241383,-225.96099461,0.00027671,2]
[314358646,1708228241392,-500.0,0.00027671,2]
[314358647,1708228241402,-500.0,0.00027671,2]
[314358648,1708228241411,-467.44471957,0.00027671,2]
[314358649,1708228241420,-500.0,0.00027671,2]
[314358650,1708228241430,-468.51717466,0.00027671,2]
[314358652,1708228241439,-500.0,0.00027671,2]
[314358654,1708228241449,-500.0,0.00027671,2]
[314358656,1708228241458,-500.0,0.00027671,2]
[314358657,1708228241467,-241.62581266,0.00027671,2]
[314358658,1708228241477,-500.0,0.00027671,2]
[314358659,1708228241486,-500.0,0.00027671,2]
[314358660,1708228241495,-500.0,0.00027671,2]
[314358661,1708228241504,-500.0,0.00027671,2]
[314358662,1708228241513,-503.89435291,0.00027671,2]
[314358663,1708228241523,-500.0,0.00027671,2]
[314358664,1708228241532,-509.42747849,0.00027671,2]
[314358666,1708228241542,-500.0,0.00027671,2]
[314358667,1708228241552,-500.0,0.00027671,2]
[314358668,1708228241561,-500.0,0.00027671,2]
[314358669,1708228241571,-517.74321469,0.00027671,2]
[314358670,1708228241580,-500.0,0.00027671,2]
[314358671,1708228241589,-500.0,0.00027671,2]
[314358673,1708228241598,-500.0,0.00027671,2]
[314358675,1708228241607,-500.0,0.00027671,2]
[314358676,1708228241617,-500.0,0.00027671,2]
[314358677,1708228241626,-151.0,0.00027671,2]
[314358678,1708228241635,-500.0,0.00027671,2]
[314358679,1708228241644,-504.17341533,0.00027671,2]
[314358680,1708228241654,-500.0,0.00027671,2]
[314358681,1708228241663,-500.0,0.00027671,2]
[314358682,1708228241673,-504.21440813,0.00027671,2]
[314358683,1708228241683,-250.0,0.00027671,2]
[314358684,1708228241693,-500.0,0.00027671,2]